Cogmind - Beta 12 @@@ ROGUE MODE // 2024.02.23 @ 18:15:24 Player: Xplodonator Result: Self-destructed Performance ------------- Evolutions (1) 500 Regions Visited (2) 400 Robots Destroyed (20) 100 Value Destroyed (402) 402 Prototype IDs (0) 0 Alien Tech Used (0) 0 Bonus (0) 0 TOTAL SCORE: 1402 Bonus ------- None Cogmind --------- Core Integrity 369/400 Matter 273/300 Energy 250/250 System Corruption 0% Temperature Cool (26) Movement Core (350) Ox6 Location -9/Materials Parts ------- > --- POWER (1) -------- Ion Engine > --- PROPULSION (3) --- (None) > --- UTILITY (3) ------ Medium Storage Unit Sensor Array Hacking Suite > --- WEAPON (2) ------- EM Pulse Gun Light Assault Rifle > --- INVENTORY (10) --- Ion Engine Aluminum Leg Aluminum Leg Hover Unit Weight Redist. System Seismic Detector Peak State ------------ > --- POWER ------------ Ion Engine > --- PROPULSION ------- Wheel Wheel Wheel > --- UTILITY ---------- Medium Storage Unit Sensor Array Hacking Suite > --- WEAPON ----------- Assault Rifle Light Assault Rifle > --- INVENTORY -------- Ion Engine Aluminum Leg Aluminum Leg Hover Unit Weight Redist. System Seismic Detector EM Pulse Gun [Rating: 11] Favorites ----------- Power Ion Engine Engine Ion Engine Propulsion Wheel Treads Light Treads Wheel Wheel Utility Small Storage Unit Device Sensor Array Storage Small Storage Unit Hackware Hacking Suite Weapon Assault Rifle Energy Gun EM Pulse Gun Ballistic Gun Assault Rifle Build | -11 -10 -9 ------- Run | Jun Mat Mat Slots Evolved 2 | . . 2 Power . | . . . Propulsion 1 | . . 1 Utility 1 | . . 1 Weapon . | . . . Parts Attached 17 | 10 3 4 Power 1 | 1 . . Engine 1 | 1 . . Core . | . . . Reactor . | . . . Propulsion 5 | 3 1 1 Treads 1 | 1 . . Leg . | . . . Wheel 4 | 2 1 1 Hover . | . . . Flight . | . . . Utility 7 | 3 2 2 Device 4 | 2 1 1 Storage 2 | 1 1 . Processor . | . . . Hackware 1 | . . 1 Protection . | . . . Artifact . | . . . Weapon 4 | 3 . 1 Energy Gun 2 | 1 . 1 Energy Cannon . | . . . Ballistic Gun 2 | 2 . . Ballistic Cannon . | . . . Launcher . | . . . Special Weapon . | . . . Impact Weapon . | . . . Slashing Weapon . | . . . Piercing Weapon . | . . . Special Melee Weapon . | . . . Unidentified Prototypes . | . . . Parts Lost 4 | . . 4 Power . | . . . Propulsion 3 | . . 3 Utility . | . . . Weapon 1 | . . 1 Highest Loss Streak 4 | . . 4 To Critical Strikes . | . . . Average Slot Usage (%) 98 | . 100 96 Engine 13 | . 14 11 Wheel 28 | . 28 29 Device 13 | . 14 13 Storage 13 | . 14 11 Hackware 2 | . . 8 Ballistic Gun 25 | . 28 21 Naked Turns . | . . . Heaviest Build 20 | 14 19 20 Greatest Support 30 | 20 20 30 Greatest Overweight (x) 1 | 1 . . Average Overweight (x) . | . . . Largest Inventory Capacity 10 | 8 10 10 Average Capacity 8 | 7 8 10 Most Carried 8 | 8 8 7 Average Carried 7 | 6 7 6 Final Capacity 10 | 8 10 10 Final Carried 8 | 7 8 6 Class Distribution -------------------- 82% | Mutant 17% | Scavenger-Mutant Dominant Class ---------------- Mutant | -10/Materials Scavenger-Mutant | -9/Materials Resources | -11 -10 -9 ----------- Run | Jun Mat Mat Matter Collected 627 | 295 233 99 Remotely . | . . . Salvage Created 635 | 53 312 270 Parts 41 | 6 17 18 Haulers Intercepted 2 | . 2 . Recyclers Shooed . | . . . Parts Field Recycled . | . . . Retrieved Matter . | . . . Parts Self-Destructed . | . . . Prevented . | . . . Kills | -11 -10 -9 ------- Run | Jun Mat Mat Combat Hostiles Destroyed 11 | . 5 6 Guns 11 | . 5 6 Classes Destroyed 7 | 1 5 1 Worker 1 | . 1 . Tunneler 3 | 3 . . Hauler 2 | . 2 . Operator 1 | . . 1 Watcher 2 | . 2 . Swarmer 3 | . 3 . Grunt 8 | . 2 6 Best Kill Streak 4 | 1 4 3 Combat Bots Only 3 | . 3 3 Max Kills in Single Turn 1 | 1 1 1 Gunslinging . | . . . Exploded . | . . . Melee . | . . . Uniques/NPCs Destroyed . | . . . Combat | -11 -10 -9 -------- Run | Jun Mat Mat Damage Taken 466 | . 123 343 Core 91 | . 60 31 Absorbed by Shields . | . . . Core Remaining (%) 88 | 100 76 . Volleys Fired 79 | 22 30 27 Largest 2 | 2 2 2 Hottest 60 | 40 40 60 Shots Fired 157 | 44 60 53 Gun 157 | 44 60 53 Cannon . | . . . Launcher . | . . . Special . | . . . Kinetic 154 | 44 60 50 Thermal . | . . . Explosive . | . . . Electromagnetic 3 | . . 3 Robot Hit Streak 8 | 4 8 5 Robot Miss Streak 3 | 3 3 3 Penetration Max . | . . . Secondary Targets 2 | . . 2 Max Gunslinging Chain 1 | . . 1 Shots Hit Robots 90 | 23 37 30 Core Hits 41 | 7 18 16 Critical Kills . | . . . Critical Parts Destroyed . | . . . Critical Strikes . | . . . Melee Attacks . | . . . Impact . | . . . Slashing . | . . . Piercing . | . . . Sneak Attacks . | . . . Combat Hostiles . | . . . Follow-up Attacks . | . . . Damage Inflicted 942 | 224 398 320 Guns 942 | 224 398 320 Cannons . | . . . Explosions . | . . . Melee . | . . . Ramming . | . . . Kinetic 927 | 224 398 305 Thermal . | . . . Explosive . | . . . Electromagnetic 15 | . . 15 Impact . | . . . Slashing . | . . . Piercing . | . . . Highest Corruption . | . . . Average Corruption . | . . . Corruption Purged . | . . . Corruption Blocked . | . . . Overload Shots . | . . . Overflow Damage . | . . . Projectiles . | . . . Explosions . | . . . Melee . | . . . Knockbacks . | . . . Impact . | . . . Kinetic . | . . . Secondary . | . . . Self-Inflicted Damage . | . . . Shots . | . . . Rammed . | . . . Targets Rammed . | . . . Kicked . | . . . Crushed . | . . . Highest Temperature 49 | . 27 49 Average Temperature 12 | . 14 12 Received Heat Transfer 252 | . 57 195 Siege Activations . | . . . Robots Corrupted . | . . . Combat Hostiles . | . . . Parts Fried . | . . . Impact Corruptions . | . . . Robots Melted . | . . . Combat Hostiles . | . . . Parts Melted . | . . . Heat Transferred . | . . . Parts Sabotaged . | . . . Parts Stolen . | . . . Parts Stripped . | . . . Power Chain Reactions . | . . . Missiles Intercepted . | . . . Alert | -11 -10 -9 ------- Run | Jun Mat Mat Peak Influence 252 | 15 252 194 Initial 34 | . 9 34 Average 87 | 4 143 93 Maximum Alert Level 1 | . 1 . Low Security (%) 83 | 100 65 100 Level 1 16 | . 34 . Level 2 . | . . . Level 3 . | . . . Level 4 . | . . . Level 5 . | . . . High Security . | . . . Max Security . | . . . Squads Dispatched 3 | . 2 1 Investigation 1 | . 1 . Extermination . | . . . Reinforcement 2 | . 1 1 Assault . | . . . Garrison . | . . . Intercept . | . . . Searches Triggered . | . . . Construction Impeded . | . . . Haulers Reinforced . | . . . Active Scanning Responses . | . . . Cargo Convoy Interrupts . | . . . Stealth | -11 -10 -9 --------- Run | Jun Mat Mat Distress Signals . | . . . Communications Jammed . | . . . Distress Signals . | . . . Times Spotted 25 | . 16 9 Peak Tracking Total 4 | . 3 4 Tactical Retreats 3 | . 3 . Traps | -11 -10 -9 ------- Run | Jun Mat Mat Traps Triggered 1 | . 1 . Indirectly . | . . . Trap Hack Attempts . | . . . Triggered . | . . . Disarmed . | . . . Reprogrammed . | . . . Reused . | . . . Traps Extracted . | . . . Installed . | . . . Triggered . | . . . Machines | -11 -10 -9 ---------- Run | Jun Mat Mat Machines Disabled . | . . . Max in Single Turn . | . . . Machines Repaired . | . . . Machines Sabotaged . | . . . Overloaded Fab Kills . | . . . Hacking | -11 -10 -9 --------- Run | Jun Mat Mat Machines Accessed 2 | . 2 . Terminals 1 | . 1 . Fabricators . | . . . Repair Stations . | . . . Recycling Units 1 | . 1 . Scanalyzers . | . . . Garrison Access . | . . . Total Hacks 5 | . 5 . Successful 4 | . 4 . Failed 1 | . 1 . Catastrophic . | . . . Database Lockouts . | . . . Manual . | . . . Terminals 2 | . 2 . Fabricators . | . . . Repair Stations . | . . . Recycling Units 3 | . 3 . Scanalyzers . | . . . Garrison Access . | . . . Terminal Hacks 1 | . 1 . Record 1 | . 1 . Fabricator Hacks . | . . . Repair Station Hacks . | . . . Recycling Unit Hacks 3 | . 3 . Process 1 | . 1 . Report Inventory 1 | . 1 . Retrieve Matter 1 | . 1 . Scanalyzer . | . . . Garrison Access Hacks . | . . . Unauthorized Hacks . | . . . Terminals . | . . . Fabricators . | . . . Repair Stations . | . . . Recycling Units . | . . . Scanalyzers . | . . . Garrison Access . | . . . Data Cores Recovered . | . . . Used . | . . . Hacking Detections 1 | . 1 . Full Trace Events . | . . . Feedback Events . | . . . Feedback Blocked . | . . . Robot Schematics Acquired . | . . . Robots Built . | . . . Authchips . | . . . Time . | . . . Total Robot Build Rating . | . . . Part Schematics Acquired . | . . . Parts Built . | . . . Authchips . | . . . Time . | . . . Total Part Build Rating . | . . . Parts Repaired . | . . . Time . | . . . Parts Recycled . | . . . Recycled Matter 22 | . 22 . Retrieved Matter . | . . . Retrieved Components . | . . . Parts Scanalyzed . | . . . Part Schematics Acquired . | . . . Parts Damaged . | . . . Bothacking | -11 -10 -9 ------------ Run | Jun Mat Mat Used RIF Installer . | . . . Robots Hacked . | . . . Non-combat . | . . . Combat . | . . . Robot Hacks Applied . | . . . Relay Couplers Released . | . . . Fabnet Peak Effective % . | . . . Robots Rewired . | . . . Allies Hacked . | . . . Hacks Repelled . | . . . Allies | -11 -10 -9 -------- Run | Jun Mat Mat Total Allies . | . . . Largest Group . | . . . Highest-Rated Group . | . . . Highest-Rated Ally . | . . . Total Orders . | . . . Ally Attacks . | . . . Total Damage . | . . . Kills . | . . . Allies Corrupted . | . . . Allies Melted . | . . . Intel | -11 -10 -9 ------- Run | Jun Mat Mat Robot Analysis Total . | . . . Derelict Logs Recovered . | . . . Drone Launches . | . . . Drone Recoveries . | . . . Exploration | -11 -10 -9 ------------- Run | Jun Mat Mat Turns Passed 962 | 312 448 202 Spaces Moved 712 | 157 407 148 Core 11 | 11 . . Treads 5 | 5 . . Legs . | . . . Wheels 696 | 141 407 148 Hover . | . . . Flight . | . . . Fastest Speed 50 | 50 80 80 Average Speed 80 | 81 80 80 Slowest Speed 160 | 160 80 80 Overloaded Moves . | . . . Propulsion Burnouts . | . . . Robots Hopped . | . . . Cave-ins Triggered . | . . . Exploration Rate (%) 28 | 7 62 15 Regions Visited 2 Branch Regions . Pre-discovered Areas . | . . . Known Exits Taken . | . . . Unknown Exits Taken 2 | 1 1 . Scrap Searched . | . . . Spaces Dug . | . . . Terrain Destroyed . | . . . Melee . | . . . Projectile . | . . . AOE . | . . . Terrain Rammed . | . . . Walls Destroyed . | . . . Machines Disabled . | . . . Actions | -11 -10 -9 --------- Run | Jun Mat Mat Total 960 | 299 477 184 Wait 128 | 98 27 3 Move 710 | 156 406 148 Hop . | . . . Pick Up 16 | 10 5 1 Fast Attach 6 | 5 1 . Attach 10 | 5 1 4 Detach 3 | 2 . 1 Swap 1 | . 1 . Drop 7 | 1 6 . Fire 79 | 22 30 27 Melee . | . . . Ram . | . . . Kick . | . . . Crush . | . . . Escape Stasis . | . . . Rewire . | . . . Trap . | . . . Miscellaneous . | . . . Route ------- -11/Junkyard -10/Materials (discovered 4 exits: *Mat x3 / [*Min]) -9/Materials History --------- Turn | Location | Event 8 | -11/Junkyard | Discovered new exit (range 15) 313 | -11/Junkyard | Entered Materials 330 | -10/Materials | Build established: Mutant 475 | -10/Materials | Discovered new exit (range 12) 492 | -10/Materials | Discovered new exit (range 9) 654 | -10/Materials | Discovered new exit (range 5) 705 | -10/Materials | Discovered new exit (range 16) 761 | -10/Materials | Entered another Materials area 761 | -9/Materials | Evolved 2 slots: Propulsion x1, Utility x1 963 | -9/Materials | Self-destructed Last Messages --------------- 00804_ Acquired Hacking Suite. 00806_ Terminal unresponsive. 00870_ G-34 Mercenary destroyed. 00874_ Acquired 50 matter. 00882_ G-34 Mercenary destroyed. 00888_ Acquired 12 matter. 00911_ U-05 Engineer destroyed. 00917_ G-34 Mercenary destroyed. 00917_ R-06 Scavenger collects Aluminum Leg. 00919_ G-34 Mercenary destroyed. 00919_ Switching to secondary target: Y-45 Defender. 00920_ Matter Filter disabled. 00920_ R-06 Scavenger collects Aluminum Leg. 00922_ Acquired 19 matter. 00923_ R-06 Scavenger collects Heat Sink. 00931_ G-34 Mercenary destroyed. 00938_ Wheel destroyed. 00952_ Assault Rifle destroyed. 00960_ G-47 Trooper destroyed. 00960_ Switching to secondary target: G-34 Mercenary. Map ----- +----------------------------------------------------+ | ????????????????????????????????????????????? | | ????????????????????????????????????????????? | | ????????????????????????????????????????????? | | ????????????????????????????????????????????? | | ????????????????????????????????????????????? | | ????????????????????????????????????????????? | | ????????????????????????????????????????????? | | ????????????????????????????????????????????? | | ????????????????????????????????????????????? | | ????????????????????????????????????????????? | | ??????????????????+?????????????????????????? | | ??????????????????# ????????????????????????? | | ??????????????????# ????????????????????????? | | ??????????? ?????# ????????????????????????? | | ?????????#? ??????# ??##????????????????????? | | ?????????# ?????# ? ????????????????????? | | ?????????# ?????# ?????????????????????? | | ?????????# ?????#= ??????????????????????? | | ?????????# ######/##??????????????????????? | | ?????????? + g[#??????????????????????? | | ??????????? #%%! =#??????????????????????? | | ??????????? #=a [=#??????????????????????? | | ???????????# #["""""%#??????????????????????? | | ???????????# # """"%%#??????????????????????? | | ???????????# # """"% #??????????????????????? | | ######?????# # """""@#??????????????????????? | | # #?????# # %"""" #??????????????????????? | | # #?????# + """"" #??????????????????????? | | # #?????# # """"" #??????????????????????? | | # ####### # Y #??????????????????????? | | # + = ###### ##??????????????????????? | | # # #####+##???###???????????????????????? | | # # # #?????????????????????????????? | | # # # """ #?????????????????????????????? | | # # # "R #?????????????????????????????? | | ###### #*""" #?????????????????????????????? | | # !! +%+! #?????????????????????????????? | | # ! #=# #?????????????????????????????? | | # !# ##+#####?????????????????????????????? | | # # #?????????????????????????????????? | | # ## #?????????????????????????????????? | | ####### #?????????????????????????????????? | | ?###### #?????????????????????????????????? | | ?# ## #?????????????????????????????????? | | ?# ## #?????????????????????????????????? | | ?# ## #?????????????????????????????????? | | ?# ## #?????????????????????????????????? | | ?# ## #???######????????????????????????? | | ?# ## ###?! ! #????????????????????????? | | ?? ## # #????????????????????????? | +----------------------------------------------------+ Best States ------------- Heat Dissipation 28 Energy Generation 10 Energy Capacity 250 Matter Stores 300 Matter Capacity 300 Sight Range 16 Robot Scan Range 14 Terrain Scan Range 16 Terrain Scan Density 10 Evasion (%) 50 Recoil Reduction 1 Offensive Hacking 10 Item Schematics ----------------- None Robot Schematics ------------------ None Fabricated ------------ Nothing Alien Tech Used ----------------- None Achievements -------------- None Challenges ------------ None Game ------ Seed SurgeScrapReconstructor Manual? 0 Play Time 00:20:45 Cumulative 16.6 hours Start 2024.02.23 @ 17:54:45 End 2024.02.23 @ 18:15:24 Sessions 1 Manual Loads 0 Difficulty Rogue Special Mode None Game No. 19 Rogue 19 Adventurer 0 Explorer 0 Win Type - Total 0 Types 0/0/0/0/0/0/0/0/0 Lore% 17 Gallery% 17 Achievement% 15 Wizard Run 0 Options --------- ASCII 0 Keyboard 0 Movement Mouse Keybinds 0 Fullscreen 2 Font 18/Smallcaps Map View 76x50 Tactical HUD 1 Map Filters NONE Filters NONE Steam 1 RUN: 8ca9cef5-70ff-4d4b-9b5e-e03305a6c742